bitfinex-derivatives/quotes_SOLF0:USTF0_20250124
["timestamp","ask_amount","ask_price","bid_price","bid_amount"]
[1737757274097,6.1283542,256.51,256.42,6.1571012]
[1737757274298,3.899,256.46,256.42,6.1571012]
[1737757274598,3.16,256.59,256.42,6.1571012]
[1737757274599,6.1283542,256.45,256.42,0.028747]
[1737757274794,6.1283542,256.45,256.36,6.1283542]
[1737757274999,6.1283542,256.45,256.41,0.02508931]
[1737757275598,3.8997,256.42,256.41,0.02508931]
[1737757278007,10.0280542,256.42,256.41,0.02508931]
[1737757278307,3.9003,256.38,256.33,6.1283542]
[1737757279512,3.92910351,256.38,256.33,6.1544073]
[1737757280007,3.9008,256.34,256.33,0.0260531]
[1737757282605,6.1283542,256.36,256.27,6.1283542]
[1737757282809,3.9017,256.28,256.24,6.1283542]
[1737757283005,6.1283542,256.36,256.24,6.1283542]
[1737757283202,6.1283542,256.33,256.21,6.1283542]
[1737757283609,6.1283542,256.3,256.21,6.1283542]
[1737757283808,6.15525162,256.3,256.21,6.1283542]
[1737757284001,6.15525162,256.3,256.23,0.02888709]
[1737757285705,3.9022,256.25,256.23,0.02888709]
[1737757288013,3.9023,256.24,256.23,0.02888709]
[1737757289316,10.0306542,256.24,256.23,0.02888709]
[1737757289613,6.1283542,256.24,256.12,8.6660542]
[1737757289815,6.1283542,256.17,256.09,6.1283542]
[1737757290011,6.1283542,256.17,256.06,10.0333542]
[1737757290318,6.1283542,256.14,256.06,6.1283542]
[1737757290706,6.1283542,256.14,256.03,6.1283542]
[1737757290915,0.02879652,256.13,256.07,0.02687664]
[1737757291314,3.9048,256.08,256.07,0.02687664]
[1737757295719,10.0331542,256.08,256.07,0.02687664]
[1737757296123,6.1283542,256.08,256.07,0.02687664]
[1737757296415,10.0326542,256.11,256.07,0.02687664]
[1737757297420,3.9045,256.1,256.07,0.02687664]
[1737757302124,3.9048,256.08,256.07,0.02687664]
[1737757302422,6.1283542,256.11,256.07,0.02687664]
[1737757303427,3.9048,256.08,256.07,0.02687664]
[1737757304023,6.1283542,256.11,256.07,0.02687664]
[1737757304218,3.9046,256.09,256.07,0.02687664]
[1737757305321,3.9046,256.09,255.99,3.9433]
[1737757305322,6.1283542,256.08,255.9,6.1283542]
[1737757305524,6.1283542,256.0,255.9,7.4171542]
[1737757306029,3.9062,255.99,255.91,3.9073]
[1737757306323,0.02957144,255.98,255.92,0.02597753]
[1737757307728,3.907,255.94,255.92,0.02597753]
[1737757308928,10.0353542,255.94,255.92,0.02597753]
[1737757309834,3.907,255.94,255.92,0.02597753]
[1737757311632,9.56109819,255.98,255.92,0.02597753]
[1737757312337,3.9066,255.96,255.92,0.02597753]
[1737757312833,9.56109819,255.98,255.92,0.02597753]
[1737757313034,3.9068,255.95,255.92,0.02597753]
[1737757314742,3.9069,255.94,255.92,0.02597753]
[1737757317033,3.9071,255.93,255.92,0.02597753]
[1737757319443,3.907,255.94,255.92,0.02597753]
[1737757319740,0.02957144,255.98,255.92,0.02597753]
[1737757321142,0.02957144,255.98,255.93,3.907]
[1737757322940,0.02957144,255.98,255.92,0.02597753]
[1737757323137,0.02957144,255.98,255.96,3.9065]
[1737757323943,9.53152675,256.1,255.92,0.02597753]
[1737757324144,9.53152675,256.1,255.9,9.53152675]
[1737757324643,9.53152675,256.1,255.94,9.53152675]
[1737757325145,0.02781269,256.05,255.99,0.02518712]
[1737757325943,9.53152675,256.14,255.99,0.02518712]
[1737757326144,9.53152675,256.14,255.99,2.5583]
[1737757327042,0.02791834,256.09,256.04,0.02916409]
[1737757327847,0.02791834,256.09,256.06,3.905]
[1737757328847,0.02791834,256.09,256.04,0.02916409]
[1737757329650,0.02791834,256.09,256.06,9.99437986]
[1737757330652,3.904,256.14,256.09,3.9046]
[1737757330851,6.08947986,256.17,256.08,6.08947986]
[1737757331253,3.904,256.14,256.08,9.99417986]
[1737757331653,6.08947986,256.17,256.08,9.99417986]
[1737757331852,3.904,256.13,256.08,10.02269223]
[1737757332757,3.904,256.13,256.08,6.11799223]
[1737757333355,0.02560571,256.14,256.08,6.11799223]
[1737757333655,6.11508557,256.14,256.08,0.02851237]
[1737757333855,6.08947986,256.12,256.08,0.02851237]
[1737757334054,6.08947986,256.1,256.08,0.02851237]
[1737757335153,6.08947986,256.1,255.99,2.5583]
[1737757335348,6.08947986,256.07,256.0,1.3078]
[1737757335655,3.9055,256.03,256.0,1.3078]
[1737757337459,0.02853436,256.04,256.0,1.3078]
[1737757337648,3.9058,256.01,256.0,1.3078]
[1737757341959,0.02853436,256.04,256.0,1.3078]
[1737757342165,3.93403436,256.04,256.0,5.2138]
[1737757344764,3.93403436,256.04,256.01,3.9058]
[1737757351971,0.02853436,256.04,256.0,1.3078]
[1737757352573,0.02853436,256.04,255.99,0.02980165]
[1737757353070,0.02853436,256.04,256.01,3.9058]
[1737757355874,0.02853436,256.04,255.99,0.02980165]
[1737757357073,0.02853436,256.04,256.03,3.9055]
[1737757358070,3.9048,256.08,256.04,3.9054]
[1737757358475,9.52196952,256.13,255.99,0.02980165]
[1737757358770,9.52196952,256.17,256.0,9.52196952]
[1737757359178,0.02872348,256.11,256.08,3.9047]
[1737757360775,3.93302348,256.11,256.06,3.9305485]
[1737757361481,0.02872348,256.11,256.06,3.9305485]
[1737757361676,3.9045,256.1,256.06,3.9305485]
[1737757363979,3.9045,256.1,256.07,3.9049]
[1737757364179,0.02872348,256.11,256.06,0.0255485]
[1737757364979,0.02872348,256.11,256.08,3.9047]
[1737757365277,6.11873408,256.11,256.06,0.0255485]
[1737757365479,6.0900106,256.07,256.0,3.9059]
[1737757366577,0.0297155,256.06,256.01,0.02747807]
[1737757367184,3.9053,256.05,256.01,0.02747807]
[1737757367385,0.0297155,256.06,256.01,0.02747807]
[1737757367782,0.0297155,256.06,256.01,3.93327807]
[1737757368779,0.0297155,256.06,256.02,3.9057]
[1737757370785,0.0297155,256.06,256.03,3.9055]
[1737757371287,0.0297155,256.06,256.05,3.9052]
[1737757377983,3.9034,256.17,256.11,3.9042]
[1737757378188,3.9034,256.17,256.08,6.0900106]
[1737757378387,6.0900106,256.18,256.08,6.0900106]
[1737757378591,6.0900106,256.21,256.08,6.0900106]
[1737757378982,6.0900106,256.21,256.11,6.0900106]
[1737757379182,0.02715493,256.17,256.12,0.02699676]
[1737757379383,0.02715493,256.17,256.15,3.9036]
[1737757380485,0.02715493,256.17,256.16,3.9035]
[1737757381591,0.02715493,256.17,256.12,0.02699676]
[1737757381892,0.02715493,256.17,256.13,3.9039]
[1737757382890,0.02715493,256.17,256.12,0.02699676]
[1737757384694,0.02715493,256.17,256.14,3.9038]
[1737757387293,0.02715493,256.17,256.12,0.02699676]
[1737757387494,0.02715493,256.17,256.14,6.0900106]
[1737757388998,0.02715493,256.17,256.16,3.9035]
[1737757401910,0.02715493,256.17,256.12,0.02699676]
[1737757402109,0.02715493,256.17,256.16,3.9035]
[1737757407408,3.9026,256.23,256.2,3.9029]
[1737757410313,3.9024,256.24,256.2,3.9029]
[1737757413618,3.9018,256.28,256.23,3.9025]
[1737757413811,7.88979811,256.4,256.06,1.2999]
[1737757414017,7.88979811,256.4,256.23,0.02560115]
[1737757414215,7.88979811,256.4,256.06,193.2999]
[1737757414416,3.9003,256.38,256.29,0.02708744]
[1737757414618,2.5055,256.41,256.28,3.9017]
[1737757414822,2.5055,256.41,256.31,0.02876815]
[1737757415222,3.9011,256.32,256.31,0.02876815]
[1737757417423,11.73,256.46,256.31,0.02876815]
[1737757417424,3.9005,256.37,256.31,0.02876815]
[1737757417625,3.9005,256.37,256.22,3.9026]
[1737757417826,3.9005,256.37,256.31,0.02819763]
[1737757418027,3.9005,256.37,256.16,4.0082]
[1737757418226,3.9005,256.37,256.31,0.02874734]
[1737757418525,3.9005,256.37,256.31,0.02480163]
[1737757418917,3.6974,256.47,256.35,3.9006]
[1737757419426,3.6974,256.47,256.38,0.02716317]
[1737757420226,3.8998,256.41,256.38,0.02716317]
[1737757421026,3.8999,256.4,256.38,0.02716317]
[1737757425632,3.6974,256.47,256.38,0.02716317]
[1737757426029,2.5475,256.53,256.38,0.02716317]
[1737757426331,2.5475,256.53,256.43,0.02765222]
[1737757428130,3.8993,256.44,256.43,0.02765222]
[1737757431739,3.8992,256.45,256.43,0.02765222]
[1737757434742,3.8993,256.44,256.43,0.02765222]
[1737757438145,3.8989,256.47,256.43,0.02765222]
[1737757439242,3.8987,256.48,256.43,3.92705222]
[1737757443953,2.5475,256.53,256.43,0.02765222]
[1737757444148,3.8993,256.44,256.43,0.02765222]
[1737757446453,11.73,256.52,256.32,3.9011]
[1737757447652,0.02708346,256.45,256.39,0.02940439]
[1737757448948,3.8999,256.4,256.39,0.02940439]
[1737757450249,0.02708346,256.45,256.2,73.02]
[1737757450454,0.68284436,256.52,256.21,3.8251]
[1737757451251,11.73,256.49,256.21,3.8251]
[1737757451451,0.02578121,256.39,256.34,0.02519894]
[1737757451752,3.9017,256.28,256.22,3.9026]
[1737757452153,3.9017,256.28,256.21,3.8251]
[1737757452154,1.3467,256.38,256.21,3.8251]
[1737757452355,1.3467,256.38,256.23,3.9024]
[1737757452855,0.0279548,256.33,256.28,0.02975612]
[1737757453451,3.9016,256.29,256.28,0.02975612]
[1737757460162,0.0279548,256.33,256.12,1.3359]
[1737757460355,1.2496,256.37,256.12,1.3359]
[1737757460660,1.2496,256.37,256.15,3.9035]
[1737757461262,0.02867045,256.29,256.23,0.02781339]
[1737757462460,3.9023,256.24,256.23,0.02781339]
[1737757466762,3.9023,256.24,256.17,3.9034]
[1737757466763,0.02867045,256.29,256.12,1.3359]
[1737757466963,3.9028,256.22,256.12,1.3359]
[1737757467163,3.08,256.31,256.12,1.3359]
[1737757467363,3.9025,256.24,256.12,1.3359]
[1737757467763,3.08,256.31,256.17,3.9034]
[1737757467962,0.02789378,256.21,256.17,3.9034]
[1737757468164,3.9026,256.23,256.17,3.9034]
[1737757468362,0.02543678,256.22,256.17,3.9034]
[1737757469068,0.02543678,256.22,256.16,0.02731205]
[1737757470171,0.02543678,256.22,256.21,3.9028]
[1737757471262,0.02543678,256.22,256.16,3.93081205]
[1737757471864,3.9028,256.21,256.16,3.93081205]
[1737757477981,0.02543678,256.22,256.16,0.02731205]
[1737757478281,3.9033,256.18,256.16,0.02731205]
[1737757480378,3.9029,256.21,256.16,0.02731205]
[1737757480570,0.02543678,256.22,256.16,0.02731205]
[1737757481281,3.9029,256.21,256.17,3.9033]
[1737757482586,0.02543678,256.22,256.16,0.02731205]
[1737757482783,3.903,256.2,256.16,3.93071205]
[1737757482985,0.02543678,256.22,256.16,0.02731205]
[1737757484585,0.02543678,256.22,256.18,3.9032]
[1737757486389,0.02543678,256.22,256.16,0.02731205]
[1737757486589,0.02543678,256.22,256.19,3.9031]
[1737757490993,0.02543678,256.22,256.2,3.9029]
[1737757492590,0.02543678,256.22,256.21,3.9028]
[1737757498997,0.02543678,256.22,256.17,2.5747]
[1737757499193,0.02543678,256.22,256.19,3.903]
[1737757499394,0.02543678,256.22,256.17,2.5747]
[1737757499795,3.92823678,256.22,256.17,6.478]
[1737757500096,0.02543678,256.22,256.17,6.478]
[1737757500399,3.9034,256.17,256.16,0.02731205]
[1737757501200,0.02543678,256.22,255.99,73.06]
[1737757501497,2.4832,256.23,256.01,3.9736]
[1737757502194,3.9044,256.11,256.04,3.9054]
[1737757502397,3.9044,256.11,256.09,0.0250549]
[1737757504092,11.73,256.1,255.95,22.45047887]
[1737757504299,15.9483,256.1,255.86,1.3315]
[1737757504499,1.3169,256.09,255.86,1.3315]
[1737757505404,0.02593595,256.0,255.95,0.02549951]
[1737757506304,3.9065,255.97,255.95,0.02549951]
[1737757506795,0.02593595,256.0,255.83,1.3455]
[1737757507001,11.73,256.06,255.83,1.3455]
[1737757507501,3.9071,255.93,255.83,1.3455]
[1737757507705,23.45,256.07,255.8,1.3655]
[1737757507900,23.45,256.07,255.85,0.02661676]
[1737757507901,0.02994949,255.91,255.85,0.02661676]
[1737757508095,3.9063,255.99,255.8,1.3655]
[1737757508302,0.78106693,256.06,255.8,1.3655]
[1737757508303,0.02536169,255.88,255.85,0.02648843]
[1737757508504,0.78106693,256.06,255.8,5.2744]
[1737757508700,3.93460408,255.89,255.84,0.0277563]
[1737757508899,3.9077,255.89,255.8,1.3655]
[1737757509102,0.02786671,255.89,255.84,0.02639103]
[1737757509295,3.9079,255.88,255.84,0.02639103]
[1737757509495,0.02786671,255.89,255.84,0.02639103]
[1737757510198,3.93556671,255.89,255.84,0.02639103]
[1737757511800,0.02786671,255.89,255.84,0.02639103]
[1737757512803,3.9081,255.86,255.84,0.02639103]
[1737757513294,0.02786671,255.89,255.69,2.6048]
[1737757513498,23.45,255.92,255.69,2.6048]
[1737757513894,3.9097,255.76,255.69,6.5155]
[1737757514100,23.45,255.89,255.69,1.3577]
[1737757514301,23.45,255.89,255.53,2.5061]
[1737757514608,0.02880781,255.82,255.53,3.8638]
[1737757515108,0.69081467,255.88,255.53,3.8638]
[1737757515304,0.78164693,255.87,255.53,3.8638]
[1737757516008,0.0254421,255.73,255.67,0.02513344]
[1737757516507,3.9108,255.69,255.67,0.02645373]
[1737757517305,3.911,255.67,255.54,3.9129]
[1737757517505,11.73,255.78,255.53,1.3577]
[1737757517713,0.69033395,255.77,255.48,2.6367]
[1737757518009,3.9117,255.63,255.54,3.913]
[1737757518207,0.7819831,255.76,255.41,73.14]
[1737757518408,3.9125,255.58,255.49,3.9137]
[1737757518601,3.9125,255.58,255.56,0.02993501]
[1737757520211,3.9122,255.6,255.56,0.02993501]
[1737757521615,0.02679259,255.61,255.56,0.02993501]
[1737757522319,3.93879259,255.61,255.56,0.02993501]
[1737757522820,3.9121,255.6,255.56,0.02993501]
[1737757524020,3.9124,255.59,255.56,0.02993501]
[1737757525420,0.02679259,255.61,255.56,0.02993501]
[1737757525822,3.9123,255.59,255.56,0.02993501]
[1737757526429,0.02679259,255.61,255.56,0.02993501]
[1737757526721,0.02679259,255.61,255.42,3.9729]
[1737757527021,2.3924,255.66,255.42,3.9729]
[1737757527425,2.3924,255.66,255.44,3.9145]
[1737757527626,2.3924,255.66,255.42,3.9729]
[1737757527816,0.02870313,255.58,255.52,0.02980377]
[1737757528824,3.9132,255.53,255.52,0.02980377]
[1737757533126,0.02870313,255.58,255.43,3.9146]
[1737757533321,1.361,255.64,255.43,3.9146]
[1737757533827,3.9147,255.43,255.29,3.9403]
[1737757534226,0.02888788,255.39,255.33,0.02492581]
[1737757534419,0.02888788,255.39,255.29,3.9403]
[1737757534727,0.02467291,255.37,255.35,3.9158]
[1737757535026,3.08,255.53,255.35,3.9158]
[1737757535225,0.02564183,255.39,255.35,3.9158]
[1737757535425,3.08,255.53,255.35,3.9158]
[1737757535624,0.02876172,255.4,255.35,3.9158]
[1737757535822,3.9151,255.41,255.29,3.9403]
[1737757536127,0.02677041,255.4,255.35,0.02485118]
[1737757536328,3.94197041,255.4,255.35,0.02485118]
[1737757537021,0.02677041,255.4,255.35,0.02485118]
[1737757537224,3.9153,255.39,255.35,0.02485118]
[1737757537426,0.02677041,255.4,255.35,0.02485118]
[1737757539128,0.02677041,255.4,255.38,3.9154]
[1737757539329,3.9146,255.44,255.35,0.02485118]
[1737757539529,3.08,255.57,255.35,0.02485118]
[1737757539736,3.08,255.57,255.42,3.9148]
[1737757540028,3.08,255.57,255.29,3.9403]
[1737757540224,3.9144,255.45,255.37,3.9156]
[1737757540530,3.9144,255.45,255.29,3.9403]
[1737757540531,0.02556179,255.44,255.38,0.02545285]
[1737757540831,0.02556179,255.44,255.41,3.915]
[1737757541128,3.08,255.57,255.38,0.02545285]
[1737757541332,3.9131,255.54,255.48,3.9139]
[1737757541828,12.8458,255.66,255.48,3.9139]
[1737757542029,3.9132,255.53,255.48,3.9139]
[1737757542429,3.9132,255.53,255.48,3.94105546]
[1737757542630,3.94293031,255.53,255.48,3.94105546]
[1737757543428,3.94293031,255.53,255.48,0.02715546]
[1737757545636,3.9133,255.52,255.48,0.02715546]
[1737757546335,3.94293031,255.53,255.48,3.94105546]
[1737757549142,0.02973031,255.53,255.49,3.9136]
[1737757550140,3.94293031,255.53,255.49,3.9136]
[1737757550537,0.02973031,255.53,255.49,3.9136]
[1737757551143,0.02973031,255.53,255.49,5.1974]
[1737757551443,0.02973031,255.53,255.49,1.2838]
[1737757551641,11.73,255.69,255.5,2.6946]
[1737757551940,2.4184,255.74,255.54,3.913]
[1737757552141,2.4184,255.74,255.5,2.6946]
[1737757552142,5.4984,255.74,255.5,2.6946]
[1737757552740,3.9117,255.63,255.59,0.0290864]
[1737757553143,0.02534876,255.65,255.59,0.0290864]
[1737757553343,0.02534876,255.65,255.62,3.9118]
[1737757553740,0.02534876,255.65,255.6,2.619]
[1737757556248,0.02534876,255.65,255.6,6.5311]
[1737757557146,0.02534876,255.65,255.6,7.7867]
[1737757557943,3.93664876,255.65,255.6,7.7867]
[1737757559252,3.9115,255.64,255.6,7.7867]
[1737757563550,3.9117,255.63,255.6,3.8746]
[1737757563954,0.02534876,255.65,255.6,3.8746]
[1737757564351,3.9116,255.64,255.6,3.8746]
[1737757564550,0.02534876,255.65,255.6,3.8746]
[1737757565253,3.9119,255.62,255.6,3.8746]
[1737757565453,0.02534876,255.65,255.59,0.0290864]
[1737757566153,3.9121,255.6,255.59,0.0290864]
[1737757567047,3.9119,255.61,255.59,0.0290864]
[1737757568457,3.9121,255.6,255.59,0.0290864]
[1737757569952,0.02534876,255.65,255.48,1.3485]
[1737757570153,11.73,255.69,255.48,1.3485]
[1737757570348,15.4706,255.68,255.48,1.3485]
[1737757570555,3.9134,255.52,255.48,1.3485]
[1737757570754,3.06,255.67,255.48,1.3485]
[1737757570956,14.79,255.67,255.48,1.3485]
[1737757571155,0.02925033,255.6,255.48,1.3485]
[1737757571653,0.02925033,255.6,255.46,3.9142]
[1737757572154,0.02925033,255.6,255.42,3.9148]
[1737757572354,14.79,255.67,255.5,0.02479578]
[1737757572551,0.02545212,255.54,255.39,3.9464]
[1737757572750,3.9133,255.52,255.45,3.9144]
[1737757572957,0.02631716,255.49,255.45,3.9144]
[1737757574259,0.02631716,255.49,255.44,0.02737228]
[1737757574960,3.9141,255.47,255.44,0.02737228]
[1737757575957,3.9144,255.45,255.44,0.02737228]
[1737757584665,3.9153,255.4,255.33,3.9161]
[1737757584962,3.9153,255.4,255.3,1.2393]
[1737757585564,3.9153,255.39,255.33,3.9162]
[1737757585864,0.02664222,255.38,255.32,0.02409662]
[1737757586062,15.4756,255.52,255.3,1.2393]
[1737757586258,3.9158,255.36,255.32,0.02409662]
[1737757586462,3.9158,255.36,255.31,3.9165]
[1737757586662,3.9158,255.36,255.31,3.94059662]
[1737757586863,3.916,255.35,255.31,3.94059662]
[1737757587266,0.02649702,255.37,255.31,0.02409662]
[1737757587558,3.9164,255.32,255.31,0.02409662]
[1737757588667,3.9162,255.34,255.31,0.02409662]
[1737757589166,0.02649702,255.37,255.31,0.02409662]
[1737757589366,3.9158,255.36,255.31,3.94059662]
[1737757589665,3.9158,255.36,255.31,0.02409662]
[1737757590562,3.9159,255.35,255.31,3.94059662]
[1737757590864,0.02649702,255.37,255.31,0.02409662]
[1737757591265,3.9162,255.34,255.31,0.02409662]
[1737757591969,3.9164,255.32,255.31,0.02409662]
[1737757592268,0.02649702,255.37,255.31,0.02409662]
[1737757593167,3.9159,255.36,255.31,0.02409662]
[1737757593468,0.02649702,255.37,255.31,0.02409662]
[1737757595565,3.9162,255.34,255.31,0.02409662]
[1737757597966,0.02649702,255.37,255.34,3.9161]
[1737757598367,0.02649702,255.37,255.31,0.02409662]
[1737757598568,0.02649702,255.37,255.34,3.916]
[1737757599071,0.02649702,255.37,255.35,3.9159]
[1737757599668,0.02649702,255.37,255.31,0.02409662]
[1737757599669,0.02649702,255.37,255.34,3.916]
[1737757600976,0.02649702,255.37,255.31,0.02409662]
[1737757604176,0.02649702,255.37,255.35,3.9159]
[1737757604374,0.02649702,255.37,255.31,0.02409662]
[1737757604975,3.9145,255.45,255.31,0.02409662]
[1737757605175,3.9145,255.45,255.18,289.8417]
[1737757605374,3.9145,255.45,255.19,0.71947597]
[1737757606071,3.06,255.44,255.19,0.71947597]
[1737757606275,0.0252394,255.35,255.29,2.833e-05]
[1737757606578,3.9166,255.31,255.29,2.833e-05]
[1737757617390,3.9167,255.3,255.29,2.833e-05]
[1737757642099,0.0252394,255.35,255.29,2.833e-05]
[1737757642304,3.9167,255.3,255.29,2.833e-05]
[1737757705965,3.9165,255.32,255.29,2.833e-05]
[1737757706265,0.0252394,255.35,255.29,2.833e-05]
[1737757706461,3.9163,255.33,255.29,2.833e-05]
[1737757706662,0.0252394,255.35,255.29,2.833e-05]
[1737757706966,7.89981571,255.46,255.35,3.9158]
[1737757707267,7.89981571,255.46,255.36,1.329]
[1737757707466,16.03220299,255.5,255.39,3.9153]
[1737757707766,16.03220299,255.5,255.37,1.3358]
[1737757707966,0.02902869,255.47,255.42,0.02580298]
[1737757709267,0.02902869,255.47,255.43,3.9146]
[1737757709467,16.03220299,255.5,255.42,0.02580298]
[1737757709970,1.3528,255.59,255.42,3.94050298]
[1737757710261,1.3528,255.59,255.42,0.02580298]
[1737757710471,3.9138,255.49,255.43,3.9146]
[1737757711768,3.9137,255.5,255.44,3.9145]
[1737757711964,3.9137,255.5,255.45,1.2676]
[1737757712466,3.93855007,255.52,255.45,5.1819]
[1737757712868,0.02515007,255.52,255.45,1.2676]
[1737757713063,0.02515007,255.52,255.46,3.9141]
[1737757713265,0.02515007,255.52,255.47,1.3182]
[1737757713666,0.02515007,255.52,255.42,0.02580298]
[1737757715568,3.9147,255.44,255.42,0.02580298]
[1737757717073,3.9147,255.43,255.42,0.02580298]
[1737757724976,3.9146,255.44,255.42,0.02580298]
[1737757726877,3.93914018,255.46,255.42,0.02580298]
[1737757730579,0.02474018,255.46,255.45,3.9144]
[1737757732378,3.9133,255.53,255.48,3.9139]
[1737757733385,3.9133,255.52,255.48,3.93856633]
[1737757733780,0.02483614,255.53,255.48,0.02466633]
[1737757734082,0.02483614,255.53,255.49,3.9138]
[1737757735280,3.93803614,255.53,255.49,3.9138]
[1737757735479,0.02483614,255.53,255.48,0.02466633]
[1737757735879,3.9137,255.5,255.48,0.02466633]
[1737757737379,3.9138,255.49,255.48,0.02466633]
[1737757750495,0.02483614,255.53,255.39,3.9153]
[1737757750496,3.9144,255.45,255.39,3.9153]
[1737757751091,3.9146,255.44,255.39,3.9153]
[1737757751292,7.8247,255.59,255.36,3.9156]
[1737757751493,11.76,255.58,255.36,3.9156]
[1737757751689,0.02862761,255.5,255.45,0.02998975]
[1737757752399,3.9142,255.46,255.45,0.02998975]
[1737757762606,0.02862761,255.5,255.24,2.25188935]
[1737757762805,3.9152,255.4,255.33,3.9162]
[1737757763107,14.78,255.55,255.22,3.9951]
[1737757763307,3.9157,255.37,255.29,3.9167]
[1737757763608,3.9157,255.37,255.22,3.9951]
[1737757763808,0.02606384,255.36,255.3,0.03012698]
[1737757764008,3.9158,255.36,255.22,3.9951]
[1737757764210,3.94437968,255.36,255.3,0.02739487]
[1737757765310,3.916,255.35,255.3,3.94409487]
[1737757767310,3.916,255.35,255.31,3.9165]
[1737757769614,3.94437968,255.36,255.32,3.9163]
[1737757771511,3.9164,255.33,255.3,0.02739487]
[1737757774609,0.02857968,255.36,255.3,0.02739487]
[1737757774818,0.02857968,255.36,255.35,3.9159]
[1737757776814,0.02857968,255.36,255.31,3.9164]
[1737757777014,0.02857968,255.36,255.3,0.02739487]
[1737757777418,0.02857968,255.36,255.34,3.9159]
[1737757779720,0.02857968,255.36,255.35,3.9159]
[1737757787026,0.02857968,255.36,255.31,1.2897]
[1737757787228,3.94447968,255.36,255.31,5.2061]
[1737757787621,3.94447968,255.36,255.31,1.2897]
[1737757787830,3.94447968,255.36,255.32,3.9164]
[1737757791426,3.94447968,255.36,255.31,1.2897]
[1737757792633,3.94447968,255.36,255.31,5.2062]
[1737757794333,3.916,255.35,255.31,5.2062]
[1737757795525,3.9161,255.34,255.31,5.2062]
[1737757797628,3.9161,255.34,255.31,1.2897]
[1737757798530,3.9163,255.33,255.31,1.2897]
[1737757799733,3.9163,255.33,255.3,3.94409487]
[1737757800437,3.9163,255.33,255.3,0.02739487]
[1737757800631,3.9165,255.31,255.3,0.02739487]
[1737757801533,0.02857968,255.36,255.19,3.9182]
[1737757801733,3.9177,255.24,255.19,3.9182]
[1737757802437,1.2746,255.35,255.19,3.9182]
[1737757802737,0.02655861,255.3,255.24,0.02255096]
[1737757803238,3.9175,255.25,255.24,0.02255096]
[1737757803631,3.94335861,255.3,255.24,0.02255096]
[1737757803829,0.02655861,255.3,255.25,3.9174]
[1737757804035,0.02655861,255.3,255.24,0.02255096]
[1737757805738,0.02655861,255.3,255.27,3.9171]
[1737757805938,0.02655861,255.3,255.25,1.2708]
[1737757806237,0.02655861,255.3,255.25,3.8691]
[1737757806738,0.02655861,255.3,255.28,3.917]
[1737757807639,9.26580179,255.48,255.25,3.8691]
[1737757808338,9.26580179,255.48,255.35,3.9159]
[1737757808840,0.02589022,255.44,255.39,0.02865136]
[1737757810137,7.90000179,255.59,255.39,0.02865136]
[1737757810344,23.93220478,255.61,255.33,289.0]
[1737757810543,23.93220478,255.61,255.33,300.76]
[1737757810741,23.93220478,255.61,255.34,0.71899281]
[1737757811045,16.03220299,255.61,255.59,3.9122]
[1737757813040,3.68320812,255.61,255.59,3.9122]
[1737757813445,0.02870498,255.63,255.62,3.9118]
[1737757814136,3.68320812,255.83,255.57,0.02642943]
[1737757814345,3.68320812,255.83,255.49,287.2603]
[1737757814542,3.9093,255.79,255.71,3.9103]
[1737757814844,3.9093,255.79,255.49,287.2603]
[1737757815247,0.02806358,255.66,255.6,0.02531591]
[1737757815446,3.9093,255.79,255.49,287.2603]
[1737757815645,1.3577,255.77,255.49,287.2603]
[1737757815946,1.249,255.89,255.68,3.9108]
[1737757816143,3.8806,255.89,255.49,287.2603]
[1737757816345,3.9102,255.73,255.49,1.2603]
[1737757816543,0.02976439,255.64,255.58,0.02976082]
[1737757816843,3.9096,255.77,255.61,3.9119]
[1737757817142,3.8806,255.89,255.49,287.2603]
[1737757817348,0.02704733,255.72,255.66,0.02811008]
[1737757817541,3.9099,255.75,255.61,3.9119]
[1737757817846,0.0266908,255.72,255.66,0.028537]
[1737757818147,0.69036181,255.88,255.49,287.2603]
[1737757818346,0.02664092,255.72,255.66,0.02685233]
[1737757818946,0.02875867,255.72,255.66,0.02854887]
[1737757820850,3.93905867,255.72,255.66,0.02854887]
[1737757822248,0.02875867,255.72,255.66,0.02854887]
[1737757822455,3.9109,255.68,255.66,0.02854887]
[1737757824051,0.02875867,255.72,255.66,0.02854887]
[1737757824256,3.911,255.67,255.66,0.02854887]
[1737757829057,0.02875867,255.72,255.66,0.02854887]